bitfinex-derivatives/quotes_BTCF0:USTF0_20210703
["timestamp","ask_amount","ask_price","bid_price","bid_amount"]
[1625341434243,0.24057544,34637.0,34636.0,0.30410215]
[1625341434590,0.48115088,34641.0,34636.0,0.30410215]
[1625341434689,0.54015088,34641.0,34636.0,0.30410215]
[1625341434939,0.48115088,34641.0,34636.0,0.30410215]
[1625341435041,0.54015088,34641.0,34637.0,0.00452661]
[1625341435240,0.54015088,34641.0,34637.0,0.06352661]
[1625341435489,0.54015088,34641.0,34638.0,0.00452655]
[1625341435689,0.54015088,34641.0,34638.0,0.06352655]
[1625341435790,0.29957544,34641.0,34640.0,0.24057544]
[1625341435890,0.29957544,34641.0,34640.0,0.57249544]
[1625341436041,0.29957544,34641.0,34640.0,0.57702189]
[1625341437195,0.29957544,34641.0,34640.0,0.51802189]
[1625341437295,0.29957544,34641.0,34640.0,0.57702189]
[1625341439451,0.30218559,34641.0,34640.0,0.57702189]
[1625341441702,0.06161015,34641.0,34640.0,0.57702189]
[1625341441905,0.00261015,34641.0,34640.0,0.81759733]
[1625341442005,0.00261015,34641.0,34640.0,0.87659733]
[1625341442307,0.00261015,34641.0,34640.0,3.05200011]
[1625341442456,0.00261015,34641.0,34640.0,3.06055216]
[1625341442662,0.00261015,34641.0,34640.0,4.39804424]
[1625341442758,0.24057544,34649.0,34640.0,4.39804424]
[1625341443059,0.24057544,34649.0,34641.0,0.01307759]
[1625341443307,0.24057544,34649.0,34641.0,0.13107759]
[1625341443507,0.24057544,34649.0,34645.0,1.00316737]
[1625341443607,0.24057544,34649.0,34645.0,1.06216737]
[1625341443708,0.24057544,34649.0,34645.0,1.12116737]
[1625341443810,0.24057544,34649.0,34646.0,0.00452543]
[1625341443959,0.24057544,34649.0,34648.0,0.75035088]
[1625341444061,0.24057544,34649.0,34648.0,0.80935088]
[1625341444360,0.24057544,34649.0,34648.0,0.81387631]
[1625341445363,0.24057544,34649.0,34648.0,0.87287631]
[1625341445714,0.24057544,34649.0,34648.0,0.81387631]
[1625341445864,0.24057544,34649.0,34648.0,0.87287631]
[1625341446313,0.24057544,34649.0,34648.0,0.81387631]
[1625341446615,0.24057544,34649.0,34648.0,0.87287631]
[1625341448119,0.24057544,34649.0,34648.0,0.75487631]
[1625341448471,0.29957544,34649.0,34648.0,0.75487631]
[1625341449472,0.35857544,34649.0,34648.0,0.75487631]
[1625341449572,0.35857544,34649.0,34648.0,0.48567631]
[1625341450474,0.29957544,34649.0,34648.0,0.48567631]
[1625341450925,0.24057544,34649.0,34648.0,0.48567631]
[1625341451175,0.24057544,34649.0,34648.0,0.54467631]
[1625341452479,0.24057544,34649.0,34648.0,0.48567631]
[1625341453179,0.24057544,34649.0,34648.0,0.54467631]
[1625341453285,0.24057544,34649.0,34648.0,0.48567631]
[1625341461252,0.24057544,34649.0,34648.0,1.1586912]
[1625341461800,0.24057544,34649.0,34648.0,1.4319412]
[1625341462102,0.24057544,34649.0,34648.0,3.61800622]
[1625341463353,0.24057544,34649.0,34648.0,3.67700622]
[1625341463754,0.24057544,34649.0,34648.0,5.02264832]
[1625341467413,0.24057544,34649.0,34648.0,4.96364832]
[1625341468068,0.24057544,34649.0,34648.0,4.90464832]
[1625341468167,0.29957544,34649.0,34648.0,4.90464832]
[1625341468418,0.29957544,34649.0,34648.0,2.38189429]
[1625341468769,0.29957544,34649.0,34648.0,0.69992631]
[1625341468869,0.60357544,34649.0,34648.0,0.48567631]
[1625341469771,1.2837893,34649.0,34648.0,0.48567631]
[1625341470474,0.60357544,34649.0,34648.0,0.48567631]
[1625341470972,1.28381217,34649.0,34648.0,0.48567631]
[1625341471425,5.05101217,34649.0,34648.0,0.48567631]
[1625341471875,1.28381217,34649.0,34648.0,0.48567631]
[1625341472377,1.28381217,34649.0,34648.0,1.16007694]
[1625341473279,0.60357544,34649.0,34648.0,0.48567631]
[1625341473378,0.29957544,34649.0,34648.0,0.48567631]
[1625341473728,0.98027278,34649.0,34648.0,1.16015829]
[1625341474181,2.00196832,34649.0,34648.0,2.17258463]
[1625341476182,1.94296832,34649.0,34648.0,2.17258463]
[1625341476935,1.94296832,34649.0,34648.0,3.35437845]
[1625341480896,1.94296832,34649.0,34648.0,3.41337845]
[1625341481346,1.94296832,34649.0,34648.0,4.76496469]
[1625341481696,0.92127278,34649.0,34648.0,4.76496469]
[1625341482048,1.94439748,34649.0,34648.0,4.76496469]
[1625341482896,0.92127278,34649.0,34648.0,4.76496469]
[1625341485403,0.24057544,34649.0,34648.0,4.76496469]
[1625341485552,0.24057544,34649.0,34648.0,4.82396469]
[1625341485757,0.24057544,34649.0,34648.0,4.83251665]
[1625341486201,0.68221944,34651.0,34650.0,3.5486]
[1625341486351,1.43436986,34653.0,34650.0,4.21384544]
[1625341486352,0.92277284,34653.0,34650.0,4.21384544]
[1625341486553,0.92277284,34653.0,34651.0,0.00453155]
[1625341486657,0.24057544,34653.0,34652.0,4.21802932]
[1625341486857,0.24057544,34653.0,34652.0,4.33602932]
[1625341487106,0.24057544,34653.0,34652.0,4.3405607]
[1625341487459,0.24057544,34653.0,34652.0,5.85307267]
[1625341487708,0.24057544,34653.0,34652.0,5.85760375]
[1625341488059,0.92258196,34658.0,34652.0,5.85760375]
[1625341488258,0.92258196,34658.0,34652.0,5.86615442]
[1625341488409,0.92258196,34658.0,34657.0,0.75380088]
[1625341488510,0.92258196,34658.0,34657.0,0.87180088]
[1625341488658,0.92258196,34658.0,34657.0,5.0836387]
[1625341488807,0.92258196,34658.0,34657.0,5.0881697]
[1625341489008,0.92258196,34658.0,34657.0,5.0291697]
[1625341489158,0.92258196,34658.0,34657.0,5.0881697]
[1625341489257,0.92258196,34658.0,34657.0,5.0291697]
[1625341490612,0.92258196,34658.0,34657.0,9.9403697]
[1625341491165,0.92258196,34658.0,34657.0,5.0291697]
[1625341491265,1.43410474,34658.0,34657.0,5.53489009]
[1625341492716,1.43410474,34658.0,34657.0,5.59389009]
[1625341493217,1.43671422,34658.0,34657.0,5.53489009]
[1625341493317,1.43671422,34658.0,34657.0,9.99729009]
[1625341493418,0.7547077,34658.0,34657.0,9.99729009]
[1625341493770,0.7547077,34658.0,34657.0,5.53489009]
[1625341494721,0.24318492,34658.0,34657.0,5.53489009]
[1625341495271,1.43640218,34658.0,34657.0,5.53489009]
[1625341495721,0.75458809,34658.0,34657.0,5.53489009]
[1625341496527,1.43627815,34658.0,34657.0,5.53489009]
[1625341497023,0.75458809,34658.0,34657.0,5.53489009]
[1625341497173,1.04109809,34658.0,34657.0,5.53489009]
[1625341497373,1.7227566,34658.0,34657.0,4.18710199]
[1625341498223,2.74518419,34658.0,34657.0,3.0077874]
[1625341499432,2.74518419,34658.0,34657.0,4.18561798]
[1625341500278,2.74518419,34658.0,34657.0,3.0077874]
[1625341500981,3.93802357,34658.0,34657.0,3.0077874]
[1625341501281,2.74518419,34658.0,34657.0,3.0077874]
[1625341501833,2.80418419,34658.0,34657.0,3.0077874]
[1625341502036,3.99713364,34658.0,34657.0,3.0077874]
[1625341502338,3.93813364,34658.0,34657.0,3.0077874]
[1625341503091,2.74518419,34658.0,34657.0,3.0077874]
[1625341506955,1.04109809,34658.0,34657.0,0.81733188]
[1625341507048,0.52969492,34658.0,34657.0,0.81733188]
[1625341507148,0.24318492,34658.0,34657.0,0.81733188]
[1625341507599,1.43603806,34658.0,34657.0,4.16895313]
[1625341508209,0.75443203,34658.0,34657.0,4.22795313]
[1625341508302,0.75443203,34658.0,34657.0,4.16895313]
[1625341508652,0.75443203,34658.0,34657.0,5.50927552]
[1625341509104,1.43597636,34658.0,34657.0,4.16895313]
[1625341509203,1.43597636,34658.0,34657.0,4.22795313]
[1625341509352,1.43597636,34658.0,34657.0,4.16895313]
[1625341509455,1.43597636,34658.0,34657.0,4.22795313]
[1625341509554,1.43597636,34658.0,34657.0,4.16895313]
[1625341510354,0.75443203,34658.0,34657.0,4.16895313]
[1625341512514,0.75443203,34658.0,34657.0,4.22795313]
[1625341512614,0.75443203,34658.0,34657.0,4.16895313]
[1625341513015,0.75443203,34658.0,34657.0,4.22795313]
[1625341513164,0.75443203,34658.0,34657.0,4.16895313]
[1625341513565,0.75443203,34658.0,34657.0,4.22795313]
[1625341513665,0.75443203,34658.0,34657.0,4.16895313]
[1625341513765,0.75443203,34658.0,34657.0,4.22795313]
[1625341513865,0.75443203,34658.0,34657.0,4.16895313]
[1625341514016,0.75443203,34658.0,34657.0,4.22795313]
[1625341514116,0.75443203,34658.0,34657.0,4.23650381]
[1625341514217,0.75443203,34658.0,34657.0,4.17750381]
[1625341514870,0.24318492,34658.0,34657.0,4.17750381]
[1625341515422,0.75421785,34658.0,34657.0,4.17750381]
[1625341518430,0.24318492,34658.0,34657.0,5.520758]
[1625341518577,0.24318492,34658.0,34657.0,5.579758]
[1625341519331,0.24318492,34658.0,34657.0,5.520758]
[1625341519431,0.24318492,34658.0,34657.0,5.579758]
[1625341519734,0.24318492,34658.0,34657.0,5.520758]
[1625341520084,0.24318492,34658.0,34657.0,5.579758]
[1625341522036,0.24318492,34658.0,34657.0,10.401658]
[1625341522237,0.24318492,34658.0,34657.0,10.342658]
[1625341522439,0.24318492,34658.0,34657.0,5.520758]
[1625341522839,0.24318492,34658.0,34657.0,5.579758]
[1625341522939,0.24318492,34658.0,34657.0,5.520758]
[1625341523390,0.24318492,34658.0,34657.0,5.579758]
[1625341523742,0.24318492,34658.0,34657.0,5.520758]
[1625341523842,0.24318492,34658.0,34657.0,5.579758]
[1625341523944,0.24318492,34658.0,34657.0,5.520758]
[1625341524946,0.24318492,34658.0,34657.0,5.579758]
[1625341525043,0.24318492,34658.0,34657.0,5.520758]
[1625341525143,0.24318492,34658.0,34657.0,5.579758]
[1625341525346,0.24318492,34658.0,34657.0,5.520758]
[1625341525446,0.24318492,34658.0,34657.0,5.579758]
[1625341525546,0.24318492,34658.0,34657.0,5.520758]
[1625341525797,0.24318492,34658.0,34657.0,5.579758]
[1625341525896,0.24318492,34658.0,34657.0,5.520758]
[1625341526296,0.47830492,34658.0,34657.0,5.520758]
[1625341526847,0.81898307,34658.0,34657.0,5.520758]
[1625341527348,0.81898307,34658.0,34657.0,4.17750381]
[1625341528702,0.81898307,34658.0,34657.0,5.52201467]
[1625341528703,0.47830492,34658.0,34657.0,5.52201467]
[1625341529153,0.818976,34658.0,34657.0,5.52201467]
[1625341529705,0.818976,34658.0,34657.0,5.58101467]
[1625341529804,0.47830492,34658.0,34657.0,5.52201467]
[1625341529953,0.24318492,34658.0,34657.0,5.52201467]
[1625341530254,0.24318492,34658.0,34657.0,5.58101467]
[1625341530556,0.24318492,34658.0,34657.0,5.52201467]
[1625341530656,0.24318492,34658.0,34657.0,5.58101467]
[1625341530856,0.24318492,34658.0,34657.0,5.52201467]
[1625341530956,0.24318492,34658.0,34657.0,5.58101467]
[1625341531056,0.24318492,34658.0,34657.0,5.52201467]
[1625341531156,0.24318492,34658.0,34657.0,5.58101467]
[1625341531508,0.24318492,34658.0,34657.0,5.52201467]
[1625341531708,0.24318492,34658.0,34657.0,5.58101467]
[1625341531909,0.24318492,34658.0,34657.0,5.52201467]
[1625341532109,0.24318492,34658.0,34657.0,5.58101467]
[1625341532209,0.24318492,34658.0,34657.0,5.52201467]
[1625341532361,0.24318492,34658.0,34657.0,5.58101467]
[1625341532511,0.24318492,34658.0,34657.0,5.52201467]
[1625341532613,0.24318492,34658.0,34657.0,5.58101467]
[1625341534066,0.24318492,34658.0,34657.0,5.52201467]
[1625341534266,0.58407574,34658.0,34657.0,5.52201467]
[1625341537327,1.09565462,34658.0,34657.0,5.52201467]
[1625341537477,1.09565462,34658.0,34657.0,5.58101467]
[1625341537578,1.09565462,34658.0,34657.0,5.52201467]
[1625341539383,1.43711188,34658.0,34657.0,5.52201467]
[1625341543189,1.43711188,34658.0,34657.0,9.48121467]
[1625341543540,1.43711188,34658.0,34657.0,5.52201467]
[1625341543842,2.46158076,34658.0,34657.0,7.040872]
[1625341548655,2.46158076,34658.0,34657.0,6.981872]
[1625341548806,2.28000532,34658.0,34657.0,6.22807112]
[1625341548955,3.47606189,34658.0,34657.0,4.70921379]
[1625341549055,3.53506189,34658.0,34657.0,4.70921379]
[1625341549155,7.61286189,34658.0,34657.0,4.70921379]
[1625341549258,8.33458821,34658.0,34657.0,4.70921379]
[1625341549462,9.70150581,34658.0,34657.0,4.70921379]
[1625341549757,9.70150581,34658.0,34657.0,3.36470293]
[1625341550109,11.23902876,34658.0,34657.0,2.19163549]
[1625341550359,11.23902876,34658.0,34657.0,2.18308481]
[1625341551560,11.23902876,34658.0,34657.0,1.17759844]
[1625341552010,11.23902876,34658.0,34657.0,0.84635153]
[1625341552913,11.23902876,34658.0,34657.0,0.17409874]
[1625341553763,11.23902876,34658.0,34657.0,0.51315381]
[1625341554264,11.23902876,34658.0,34657.0,0.004531]
[1625341556971,11.23902876,34658.0,34656.0,0.00452766]
[1625341557221,11.23902876,34658.0,34657.0,0.00452762]
[1625341557421,4.9201358,34658.0,34657.0,0.00452762]
[1625341557523,4.9201358,34658.0,34656.0,0.00452762]
[1625341557721,4.9201358,34658.0,34657.0,0.00452765]
[1625341558072,4.9201358,34658.0,34656.0,0.00452763]
[1625341558073,11.23048155,34658.0,34656.0,0.00452763]
[1625341558272,11.23048155,34658.0,34657.0,0.00452763]
[1625341558475,4.9201358,34658.0,34657.0,0.00452763]
[1625341558575,4.9201358,34658.0,34656.0,0.00452757]
[1625341558773,4.9201358,34658.0,34657.0,0.00452757]
[1625341559073,4.9201358,34658.0,34656.0,0.0045276]
[1625341559174,11.23042179,34658.0,34656.0,0.0045276]
[1625341559323,11.22781231,34658.0,34657.0,0.0045276]
[1625341559525,4.91752632,34658.0,34657.0,0.0045276]
[1625341559827,0.0544724,34657.0,34655.0,0.50808144]
[1625341559927,0.1134724,34657.0,34652.0,0.50815592]
[1625341560178,0.1134724,34657.0,34656.0,0.00451867]
[1625341560477,1.81848459,34657.0,34653.0,0.00451133]
[1625341560677,1.81848459,34657.0,34650.0,0.16950578]
[1625341560778,6.30902869,34654.0,34649.0,0.5085418]
[1625341560878,6.42702869,34654.0,34649.0,0.5085418]
[1625341560980,6.42702869,34654.0,34651.0,0.00450466]
[1625341561232,6.42702869,34654.0,34650.0,0.00450471]
[1625341561329,5.21562632,34651.0,34650.0,0.00450471]
[1625341561431,5.44558632,34651.0,34650.0,0.00450471]
[1625341561533,5.56358632,34651.0,34650.0,0.00450471]
[1625341562033,5.56358632,34651.0,34648.0,0.16960345]
[1625341562133,11.87302374,34651.0,34647.0,0.16966076]
[1625341562633,4.77480753,34648.0,34647.0,0.16966076]
[1625341562732,4.83380753,34648.0,34647.0,0.16966076]
[1625341562832,4.89280753,34648.0,34647.0,0.16966076]
[1625341563132,4.89280753,34648.0,34646.0,0.50899787]
[1625341563332,0.24057544,34647.0,34646.0,0.50899787]
[1625341563432,0.35857544,34647.0,34646.0,0.50899787]
[1625341563536,5.13323785,34647.0,34646.0,0.16967636]
[1625341563985,6.66784535,34647.0,34645.0,0.50915296]
[1625341564487,4.77467297,34646.0,34645.0,0.50915296]
[1625341564636,4.89267297,34646.0,34645.0,0.16974171]
[1625341564989,4.89267297,34646.0,34645.0,0.00450513]
[1625341565589,9.78077297,34646.0,34645.0,0.00450513]
[1625341565789,4.89267297,34646.0,34645.0,0.00450513]
[1625341566191,3.52855376,34646.0,34645.0,0.85184413]
[1625341566339,3.52855376,34646.0,34645.0,0.847339]
[1625341566540,3.52855376,34646.0,34645.0,0.50854485]
[1625341566791,4.88838366,34646.0,34644.0,0.17021135]
[1625341567193,3.73856936,34645.0,34644.0,0.17021135]
[1625341567295,4.99873918,34645.0,34643.0,0.24057544]
[1625341567394,9.09193918,34645.0,34643.0,0.24057544]
[1625341567593,4.75793816,34644.0,34643.0,0.24057544]
[1625341567693,5.11598816,34644.0,34643.0,0.24057544]
[1625341567793,5.17498816,34644.0,34643.0,0.24057544]
[1625341568648,3.81565007,34644.0,34643.0,0.24057544]
[1625341568996,3.81565007,34644.0,34641.0,0.51049652]
[1625341569145,3.81565007,34644.0,34640.0,0.51025674]
[1625341569146,5.1710372,34644.0,34640.0,0.51026247]
[1625341569345,0.48115088,34641.0,34640.0,0.51026247]
[1625341569445,0.54015088,34641.0,34640.0,0.51026247]
[1625341569546,0.59915088,34641.0,34640.0,0.51026247]
[1625341569647,3.98592854,34641.0,34638.0,0.17009722]
[1625341569999,2.20121466,34639.0,34637.0,0.51027659]
[1625341570247,3.7423,34638.0,34637.0,0.51027659]
[1625341570448,3.8013,34638.0,34637.0,0.51027659]
[1625341570651,6.00212986,34638.0,34637.0,0.17008214]
[1625341571157,6.06112986,34638.0,34634.0,0.50980174]
[1625341571353,0.48115088,34635.0,34634.0,0.50980174]
[1625341571451,0.85116088,34635.0,34634.0,0.50980174]
[1625341571551,0.91016088,34635.0,34634.0,0.50980174]
[1625341571653,2.5993247,34635.0,34632.0,0.16995006]
[1625341572101,0.67563687,34634.0,34631.0,0.50983411]
[1625341572253,0.79363687,34634.0,34631.0,0.50983411]
[1625341572351,0.118,34634.0,34631.0,0.50983411]
[1625341572556,0.67531249,34632.0,34630.0,0.16993459]
[1625341572753,0.79331249,34632.0,34630.0,0.16993459]
[1625341573303,0.62422034,34632.0,34629.0,0.50962746]
[1625341573402,0.48115088,34631.0,34629.0,0.50962746]
[1625341573502,0.54015088,34631.0,34629.0,0.50962746]
[1625341574006,0.54015088,34631.0,34629.0,0.16975827]
[1625341574605,0.59915088,34631.0,34629.0,0.16975827]
[1625341574911,0.59915088,34631.0,34628.0,0.50928789]
[1625341575362,0.59915088,34631.0,34626.0,1.01854965]
[1625341575363,0.24057544,34629.0,34626.0,0.16960973]
[1625341575612,0.35857544,34629.0,34626.0,0.16960973]
[1625341575712,0.35857544,34629.0,34626.0,0.50878958]
[1625341576013,0.35857544,34629.0,34625.0,0.50879024]
[1625341576715,0.35857544,34629.0,34624.0,0.50838535]
[1625341577366,0.35857544,34629.0,34625.0,0.16946124]
[1625341577767,0.35857544,34629.0,34625.0,0.50837479]
[1625341578067,0.29957544,34629.0,34625.0,0.50837479]
[1625341578568,0.24057544,34629.0,34626.0,0.5080573]
[1625341578667,0.24057544,34629.0,34626.0,0.7753273]
[1625341578767,0.29957544,34629.0,34626.0,0.8343273]
[1625341578869,0.24057544,34629.0,34626.0,0.8343273]
[1625341579068,0.24057544,34629.0,34626.0,0.8933273]
[1625341579169,0.24057544,34629.0,34628.0,1.69330125]
[1625341579367,0.24057544,34629.0,34628.0,5.90967669]
[1625341579467,0.24057544,34629.0,34628.0,5.96867669]
[1625341579568,0.24057544,34629.0,34628.0,7.15394356]
[1625341579717,0.24057544,34629.0,34628.0,7.09494356]
[1625341579919,0.24057544,34629.0,34628.0,7.09944641]
[1625341580020,0.24057544,34629.0,34628.0,7.15844641]
[1625341580120,0.24057544,34629.0,34628.0,7.09944641]
[1625341580271,0.24057544,34629.0,34628.0,7.15844641]
[1625341580625,0.24057544,34629.0,34628.0,8.51283399]
[1625341582625,0.24057544,34629.0,34628.0,4.59603399]
[1625341584033,0.24057544,34629.0,34628.0,8.34573399]
[1625341585734,0.24057544,34641.0,34628.0,8.34573399]
[1625341585834,0.29957544,34641.0,34629.0,0.057]
[1625341585984,0.35857544,34641.0,34637.0,0.08465254]
[1625341586085,0.35857544,34641.0,34637.0,0.31788254]
[1625341586284,0.00261058,34638.0,34637.0,0.31788254]
[1625341586538,0.00261058,34638.0,34637.0,0.23323]
[1625341586636,0.00261058,34638.0,34637.0,0.23772693]
[1625341587136,0.00261058,34638.0,34637.0,0.32238669]
[1625341587436,0.00261058,34638.0,34637.0,0.56296213]
[1625341587637,0.00261058,34638.0,34637.0,0.73228031]
[1625341588587,0.00261058,34638.0,34637.0,1.07095172]
[1625341590241,0.00261058,34638.0,34637.0,0.98629196]
[1625341591744,0.00261058,34638.0,34637.0,0.81697378]
[1625341592845,0.00261058,34638.0,34637.0,0.47830237]
[1625341593396,0.00261058,34638.0,34637.0,0.81711218]
[1625341593647,0.059,34638.0,34637.0,0.81711218]
[1625341594349,0.24057544,34639.0,34637.0,0.81711218]
[1625341594648,0.24057544,34639.0,34638.0,0.25418284]
[1625341594849,0.24057544,34639.0,34638.0,0.25867983]
[1625341595149,0.29957544,34639.0,34638.0,0.25867983]
[1625341595249,0.24057544,34639.0,34638.0,0.25867983]
[1625341595350,0.24057544,34639.0,34638.0,0.59758736]
[1625341595500,0.29957544,34639.0,34638.0,0.59758736]
[1625341595751,0.24057544,34639.0,34638.0,0.59758736]
[1625341595901,0.29957544,34639.0,34638.0,0.59758736]
[1625341596002,0.24057544,34639.0,34638.0,0.59758736]
[1625341596701,0.29957544,34639.0,34638.0,0.59758736]
[1625341596954,0.29957544,34639.0,34638.0,0.51285975]
[1625341597153,4.96397544,34639.0,34638.0,0.51285975]
[1625341597704,4.96397544,34639.0,34638.0,0.00449699]
[1625341598004,5.04870383,34639.0,34638.0,0.00449699]
[1625341598808,5.21798965,34639.0,34638.0,0.00449699]
[1625341599564,5.5563866,34639.0,34638.0,0.00449699]
[1625341600009,5.21798965,34639.0,34638.0,0.00449699]
[1625341600461,5.47179293,34639.0,34638.0,0.00449699]
[1625341601012,5.55655791,34639.0,34638.0,0.00449699]
[1625341601363,5.55655791,34639.0,34635.0,0.49499933]
[1625341601463,0.24057544,34636.0,34635.0,0.49499933]
[1625341601912,0.24057544,34636.0,34635.0,0.49949685]
[1625341602065,0.24057544,34636.0,34635.0,0.75410095]
[1625341603463,0.24057544,34636.0,34635.0,0.32992932]
[1625341603765,0.24057544,34636.0,34635.0,0.83930037]
[1625341604515,0.24057544,34636.0,34635.0,0.59872493]
[1625341604715,0.35857544,34636.0,34635.0,0.59872493]
[1625341605069,2.0501186,34636.0,34635.0,0.00449752]
[1625341605418,2.0501186,34636.0,34632.0,0.00449828]
[1625341605518,0.24057544,34633.0,34632.0,0.00449828]
[1625341605619,0.24057544,34633.0,34631.0,0.5943566]
[1625341605722,0.63808899,34633.0,34632.0,0.08495686]
[1625341605822,0.69708899,34633.0,34632.0,0.08495686]
[1625341605921,0.69708899,34633.0,34632.0,0.08945521]
[1625341606025,0.69708899,34633.0,34632.0,0.25936816]
[1625341606574,4.44867544,34633.0,34632.0,0.00449835]
[1625341606924,5.1250997,34633.0,34632.0,0.00449835]
[1625341607927,6.14046767,34633.0,34632.0,0.0895114]
[1625341608328,5.1250997,34633.0,34632.0,0.0895114]
[1625341608880,6.14044693,34633.0,34632.0,0.00449835]
[1625341609930,7.32504801,34633.0,34632.0,0.00449835]
[1625341610131,7.32504801,34633.0,34631.0,0.0045006]
[1625341610480,3.23494801,34633.0,34631.0,0.0045006]
[1625341610731,2.87534328,34632.0,34631.0,0.0045006]
[1625341610830,2.99334328,34632.0,34631.0,0.0045006]
[1625341610931,2.99334328,34632.0,34629.0,0.00450049]
[1625341611032,1.80941819,34632.0,34630.0,0.25510026]
[1625341611282,1.75041819,34632.0,34631.0,0.00450044]
[1625341611382,1.07381709,34632.0,34631.0,0.00450044]
[1625341611532,1.31439253,34632.0,34631.0,0.00450044]
[1625341611633,4.78251907,34632.0,34631.0,0.51468698]
[1625341611882,4.84151907,34632.0,34631.0,0.51468698]
[1625341612033,5.85749291,34632.0,34631.0,0.51468698]
[1625341612333,4.84151907,34632.0,34631.0,0.3446248]
[1625341612734,4.78251907,34632.0,34631.0,0.3446248]
[1625341612935,4.10527544,34632.0,34631.0,0.684941]
[1625341613237,0.29957544,34632.0,34631.0,0.684941]
[1625341613740,0.63858704,34632.0,34631.0,0.684941]
[1625341613837,5.17038704,34632.0,34631.0,0.684941]
[1625341613938,0.63858704,34632.0,34631.0,0.684941]
[1625341614239,0.55423054,34632.0,34631.0,1.70588068]
[1625341614440,0.49523054,34632.0,34631.0,1.70588068]
[1625341614642,0.49523054,34632.0,34631.0,1.76488068]
[1625341614744,0.24057544,34632.0,34631.0,2.95604571]
[1625341615046,0.24057544,34632.0,34631.0,4.31726311]
[1625341616496,0.24057544,34632.0,34631.0,5.84925675]
[1625341616646,0.24057544,34632.0,34631.0,5.84475631]
[1625341616748,0.24057544,34632.0,34631.0,5.84925523]
[1625341617349,0.24057544,34632.0,34631.0,5.90825523]
[1625341620602,0.24057544,34632.0,34631.0,5.90375631]
[1625341620703,0.24057544,34632.0,34631.0,5.90825516]
[1625341622759,0.24057544,34632.0,34631.0,5.84925516]
[1625341623211,0.24057544,34632.0,34631.0,5.79025516]
[1625341623612,0.24057544,34632.0,34631.0,4.25826152]
[1625341623712,0.29957544,34632.0,34631.0,4.25826152]
[1625341624114,0.49652497,34632.0,34631.0,4.25826152]
[1625341624516,0.55552497,34632.0,34631.0,4.25826152]
[1625341624665,0.61452497,34632.0,34631.0,4.25826152]
[1625341624766,0.95553208,34632.0,34631.0,4.25826152]
[1625341624866,0.89653208,34632.0,34631.0,4.25826152]
[1625341624968,0.95553208,34632.0,34631.0,4.25826152]
[1625341625117,0.89653208,34632.0,34631.0,4.25826152]
[1625341625217,0.61452497,34632.0,34631.0,4.25826152]
[1625341625568,0.95555992,34632.0,34631.0,4.25826152]
[1625341625668,5.71975992,34632.0,34631.0,4.25826152]
[1625341625868,5.46381039,34632.0,34631.0,4.25826152]
[1625341626420,5.12277544,34632.0,34631.0,4.25826152]
[1625341626821,1.0405627,34632.0,34631.0,4.25826152]
[1625341627071,2.063471,34632.0,34631.0,2.89704412]
[1625341627474,6.891471,34632.0,34631.0,1.70587909]
[1625341627571,2.063471,34632.0,34631.0,1.70587909]
[1625341627870,2.063471,34632.0,34631.0,2.89908566]
[1625341628322,2.004471,34632.0,34631.0,2.89908566]
[1625341628524,2.004471,34632.0,34631.0,3.20943566]
[1625341628624,1.945471,34632.0,34631.0,3.20943566]
[1625341628930,0.9225627,34632.0,34631.0,4.57246184]
[1625341629430,0.9225627,34632.0,34631.0,4.63146184]
[1625341629431,0.24057544,34632.0,34631.0,4.63146184]
[1625341629731,0.4965851,34632.0,34631.0,4.63146184]
[1625341630281,0.24057544,34632.0,34631.0,4.63146184]
[1625341630731,0.24057544,34632.0,34631.0,6.16346823]
[1625341631130,0.24057544,34632.0,34631.0,6.22246823]
[1625341632230,0.24057544,34632.0,34631.0,6.16346823]
[1625341632382,0.24057544,34632.0,34631.0,6.22246823]
[1625341636588,0.24057544,34632.0,34631.0,6.23102315]
[1625341637289,0.24057544,34632.0,34631.0,7.93243841]
[1625341642001,0.3259911,34638.0,34631.0,7.93243841]
[1625341642356,0.3259911,34638.0,34632.0,0.01305202]
[1625341642454,0.3259911,34638.0,34632.0,0.07205202]
[1625341642553,0.3259911,34638.0,34637.0,5.78253572]
[1625341642554,0.24057544,34638.0,34637.0,5.78253572]
[1625341642655,0.24057544,34638.0,34637.0,10.63743572]
[1625341642954,0.24057544,34638.0,34637.0,10.65048739]
[1625341643156,0.24318602,34638.0,34637.0,10.65048739]
[1625341643655,0.24318602,34638.0,34637.0,11.1230843]
[1625341644507,0.24318602,34638.0,34637.0,6.3861843]
[1625341646509,0.24318602,34638.0,34637.0,6.3271843]
[1625341646659,0.24318602,34638.0,34637.0,6.3861843]
[1625341646911,0.00261058,34638.0,34637.0,6.3861843]
[1625341647463,0.00261058,34638.0,34637.0,10.5660843]
[1625341648914,0.00261058,34638.0,34637.0,10.5746377]
[1625341649216,0.00261058,34638.0,34637.0,10.5660843]
[1625341650470,0.00261058,34638.0,34637.0,6.3861843]
[1625341652574,0.00261058,34638.0,34637.0,10.2627843]
[1625341652775,0.00261058,34638.0,34637.0,6.3861843]
[1625341655031,0.00261058,34638.0,34637.0,10.3272843]
[1625341657585,0.00261058,34638.0,34637.0,10.33583776]
[1625341658735,0.00261058,34638.0,34637.0,6.33573776]
[1625341658936,0.00261058,34638.0,34637.0,6.3271843]
[1625341659038,0.00261058,34638.0,34637.0,6.2681843]
[1625341659286,0.00261058,34638.0,34637.0,6.3271843]
[1625341659536,0.00261058,34638.0,34637.0,6.3861843]
[1625341659687,0.00261058,34638.0,34637.0,6.3271843]
[1625341659787,0.24318602,34638.0,34637.0,6.3861843]
[1625341661191,0.24318602,34638.0,34637.0,6.8945057]
[1625341661642,0.24318602,34638.0,34637.0,6.90305985]
[1625341662491,0.24318602,34638.0,34637.0,6.8945057]
[1625341663796,0.24318602,34638.0,34637.0,6.90305993]
[1625341664999,0.24318602,34638.0,34637.0,6.84405993]
[1625341665302,0.24318602,34638.0,34637.0,5.31338871]
[1625341665651,0.24318602,34638.0,34637.0,5.25438871]
[1625341665751,0.24318602,34638.0,34637.0,6.78028678]
[1625341665851,0.24318602,34638.0,34637.0,6.83928678]
[1625341666205,0.24318602,34638.0,34637.0,5.31338871]
[1625341666455,0.24318602,34638.0,34637.0,5.25438871]
[1625341666554,4.11928602,34638.0,34637.0,5.25438871]
[1625341666706,0.24318602,34638.0,34637.0,5.24583448]
[1625341667156,0.24318602,34638.0,34637.0,3.88523784]
[1625341667556,0.49873525,34638.0,34637.0,3.88523784]
[1625341667907,0.89822075,34638.0,34637.0,3.88523784]
[1625341668008,0.89822075,34638.0,34637.0,4.15984784]
[1625341668105,0.83922075,34638.0,34637.0,4.15984784]
[1625341668406,0.75398096,34638.0,34637.0,4.15984784]
[1625341668756,0.83924444,34638.0,34637.0,4.15984784]
[1625341669656,0.89824444,34638.0,34637.0,4.15984784]
[1625341669856,0.83924444,34638.0,34637.0,4.15984784]
[1625341670660,5.45644444,34638.0,34637.0,4.15984784]
[1625341670761,0.83924444,34638.0,34637.0,4.15984784]
[1625341670862,0.75398096,34638.0,34637.0,4.15984784]
[1625341671663,1.09472534,34638.0,34637.0,4.15984784]
[1625341672414,0.75423984,34638.0,34637.0,4.15984784]
[1625341674319,0.75458454,34638.0,34637.0,5.51643622]